[Event "Marshall CC U2400 October 2024"]
[Site "New York"]
[Date "2024.10.20"]
[Round "4.8"]
[White "Wu, Winsley"]
[Black "Sukhiashvili, Alexander"]
[Result "1/2-1/2"]
[ECO "B24"]
[WhiteElo "1845"]
[BlackElo "1812"]
[Annotator "NA RC"]
[PlyCount "160"]
[EventDate "2024.04.20"]
[EventType "swiss"]
[EventCountry "USA"]
[SourceTitle "playchess.com"]
[Source "ChessBase"]
[SourceQuality "1"]
[TimeControl "5400+30"]

1. e4 {[%emt 0:01:04]} c5 {[%emt 0:10:31]} 2. Ne2 {[%emt 0:00:10]} e6 {[%emt 0:00:27]} 3. Nbc3 {[%emt 0:00:03]} Nc6 {[%emt 0:00:12]} 4. g3 {[%emt 0:00:11]} Nf6 {[%emt 0:01:30]} 5. Bg2 {[%emt 0:00:09]} d5 {[%emt 0:00:23]} 6. exd5 {[%emt 0:00:12]} exd5 {[%emt 0:01:00]} 7. d4 {[%emt 0:01:56]} cxd4 {[%emt 0:07:01]} 8. Nxd4 {[%emt 0:00:17]} Bb4 {[%emt 0:04:37]} 9. O-O {[%emt 0:06:38]} O-O {[%emt 0:00:42]} 10. Nce2 {[%emt 0:01:41] verliert an Beliebtheit (10.Bg5). B24: Sizilianisch (Geschlossenes System).} h6 {[%emt 0:02:27]} 11. h3 {[%emt 0:01:06]} Re8 {[%emt 0:04:31]} 12. c3 {[%emt 0:00:32]} Bc5 {[%emt 0:01:04]} 13. Be3 {[%emt 0:01:40]} Nxd4 $146 {[%emt 0:01:51]} ({Predecessor:} 13... Bb6 14. Qc2 Ne5 15. Rad1 Nc4 16. Bc1 Nd6 {½-½ Szabo,G (2404)-Kalinin,A (2466) MNT op 5th Sozina 2004 (7)}) 14. Nxd4 {[%emt 0:01:00]} b6 {[%emt 0:02:21]} 15. Re1 {[%emt 0:01:22]} Bb7 {[%emt 0:00:32]} 16. Qd3 {[%emt 0:04:08]} Ne4 {[%emt 0:03:29]} 17. Nb3 {[%emt 0:01:16]} Bxe3 {[%emt 0:01:10]} 18. Rxe3 {[%emt 0:00:48]} Qf6 {[%emt 0:00:49]} 19. Re2 {[%emt 0:02:02]} a5 {[%emt 0:06:35]} 20. Qd4 {[%emt 0:03:32]} Qc6 {[%emt 0:02:15]} 21. Nd2 {[%emt 0:03:02]} Rad8 {[%emt 0:10:19]} 22. Rae1 {[%emt 0:04:09]} Ba6 {[%emt 0:11:32]} 23. Re3 {[%emt 0:00:04]} Bb7 {[%emt 0:02:06]} (23... f5 $11) 24. Nf1 {[%emt 0:32:06]} Qc5 {[%emt 0:05:36]} 25. Qxc5 {[%emt 0:07:56]} bxc5 {[%emt 0:00:02]} 26. f3 {[%emt 0:02:46]} Nf6 {[%emt 0:00:37]} 27. Rxe8+ {[%emt 0:00:11]} Nxe8 {[%emt 0:00:57]} 28. f4 {[%emt 0:00:49]} Nf6 {[%emt 0:01:20]} 29. c4 {[%emt 0:01:31]} Rd7 {[%emt 0:00:54]} 30. cxd5 {[%emt 0:00:09]} Bxd5 {[%emt 0:00:14]} 31. Bxd5 {[%emt 0:00:18]} Rxd5 {[%emt 0:00:03]} 32. Re3 {[%emt 0:02:17]} Rd4 {[%emt 0:00:29]} 33. Ra3 {[%emt 0:02:35]} a4 {[%emt 0:00:03]} 34. b3 {[%emt 0:01:41]} axb3 {[%emt 0:00:03]} 35. axb3 {[%emt 0:00:06]} Rd3 {[%emt 0:00:07]} 36. Ra5 {[%emt 0:00:21]} ({White should play} 36. Ra8+ $15 Kh7 37. Ra7) 36... Ne4 {[%emt 0:00:04]} ({Don't take} 36... Rxb3 37. Rxc5 g6 38. Rc4 $11) 37. Kg2 {[%emt 0:04:41]} Rxb3 {[%emt 0:00:02]} 38. Ra8+ {[%emt 0:00:23]} Kh7 {[%emt 0:00:03]} 39. Rc8 {[%emt 0:00:17]} f5 {[%emt 0:00:33]} 40. g4 {[%emt 0:00:38]} Rb2+ {[%emt 0:00:41]} 41. Kg1 {[%emt 0:00:19]} Nf2 {[%emt 0:02:47]} 42. gxf5 {[%emt 0:02:47]} Nxh3+ {[%emt 0:00:08]} 43. Kh1 {[%emt 0:00:00]} Rc2 {[%emt 0:01:28]} 44. Ne3 {[%emt 0:03:25]} Rc1+ {[%emt 0:00:11]} 45. Kg2 {[%emt 0:00:06]} Nxf4+ {[%emt 0:00:06]} 46. Kf3 {[%emt 0:00:07]} Nh5 {[%emt 0:00:57]} 47. Nd5 {[%emt 0:00:17]} Nf6 {[%emt 0:02:47]} 48. Nxf6+ {[%emt 0:01:01]} gxf6 {[%emt 0:00:01]} 49. Rc7+ {[%emt 0:00:52]} Kg8 {[%emt 0:00:05]} 50. Rc8+ {[%emt 0:00:08]} Kf7 {[%emt 0:00:36]} 51. Rc7+ {[%emt 0:00:05]} Ke8 {[%emt 0:00:09]} 52. Rh7 {[%emt 0:00:20]} Rh1 {[%emt 0:00:25]} 53. Rc7 {[%emt 0:00:07]} Rc1 {[%emt 0:03:01]} (53... Rf1+ $17 54. Ke4 Re1+ 55. Kf4 Rc1) 54. Rh7 {[%emt 0:00:06]} c4 {[%emt 0:02:00]} (54... Rf1+ $142 55. Ke4 c4) 55. Rxh6 {[%emt 0:00:50]} Rf1+ {[%emt 0:01:35]} 56. Ke4 {[%emt 0:00:27]} c3 {[%emt 0:01:45]} 57. Rh2 {[%emt 0:02:21]} Rc1 {[%emt 0:02:24]} 58. Kd3 {[%emt 0:00:19]} Ke7 {[%emt 0:00:20]} 59. Re2+ {[%emt 0:00:17]} Kf7 {[%emt 0:00:23]} 60. Rf2 {[%emt 0:00:56]} c2 {[%emt 0:01:24]} 61. Rxc2 {[%emt 0:00:35]} Rxc2 {[%emt 0:00:47]} 62. Kxc2 {[%emt 0:00:02]} Kg7 {[%emt 0:00:07]} 63. Kd3 {[%emt 0:00:05]} Kh6 {[%emt 0:00:05]} 64. Ke4 {[%emt 0:00:09]} Kg5 {[%emt 0:00:06]} 65. Ke3 {[%emt 0:00:02]} Kg4 {[%emt 0:00:59]} 66. Ke4 {[%emt 0:00:03]} Kg5 {[%emt 0:00:12]} 67. Ke3 {[%emt 0:00:03]} Kxf5 {[%emt 0:02:02]} 68. Kf3 {[%emt 0:00:01]} Ke5 {[%emt 0:00:08]} 69. Ke3 {[%emt 0:00:04]} f5 {[%emt 0:00:03]} 70. Kf3 {[%emt 0:00:03]} f4 {[%emt 0:00:04]} 71. Kf2 {[%emt 0:00:05]} Kf5 {[%emt 0:00:05]} 72. Kf3 {[%emt 0:00:05]} Kg5 {[%emt 0:00:05]} 73. Kf2 {[%emt 0:00:04]} Kg4 {[%emt 0:00:03]} 74. Kg2 {[%emt 0:00:04]} f3+ {[%emt 0:00:03]} 75. Kf2 {[%emt 0:00:04]} Kf4 {[%emt 0:00:05]} 76. Kf1 {[%emt 0:00:05]} Ke4 {[%emt 0:00:15]} 77. Kf2 {[%emt 0:00:03]} Kf4 {[%emt 0:00:09]} 78. Kf1 {[%emt 0:00:05]} Ke3 {[%emt 0:00:04]} 79. Ke1 {[%emt 0:00:04]} f2+ {[%emt 0:00:06]} 80. Kf1 {[%emt 0:00:04]} Kf3 {[%emt 0:00:39]} 1/2-1/2

[Event "Marshall CC U2400 October 2024"]
[Site "New York"]
[Date "2024.10.20"]
[Round "4.9"]
[White "Solomon, Ciprian"]
[Black "Loh, Summer"]
[Result "1-0"]
[ECO "D11"]
[WhiteElo "1905"]
[BlackElo "1700"]
[Annotator "RC"]
[PlyCount "119"]
[EventDate "2024.04.20"]
[EventType "swiss"]
[EventCountry "USA"]
[SourceTitle "playchess.com"]
[Source "ChessBase"]
[SourceQuality "1"]
[TimeControl "5400+30"]

1. c4 {[%emt 0:00:06]} c6 {[%emt 0:00:05]} 2. Nf3 {[%emt 0:00:22]} d5 {[%emt 0:00:10]} 3. e3 {[%emt 0:00:13]} Nf6 {[%emt 0:01:01]} 4. d4 {[%emt 0:00:30]} dxc4 {[%emt 0:01:01]} 5. Bxc4 {[%emt 0:00:12]} e6 {[%emt 0:00:13]} 6. O-O {[%emt 0:00:17]} a6 {[%emt 0:00:43]} 7. Nc3 {[%emt 0:00:43]} Be7 {[%emt 0:00:40]} 8. e4 {[%emt 0:01:40]} b5 {[%emt 0:02:03]} 9. Bd3 {[%emt 0:00:19]} O-O {[%emt 0:02:07]} 10. Bg5 {[%emt 0:00:58]} Nbd7 {[%emt 0:01:38]} 11. Rc1 {[%emt 0:00:41]} Bb7 {[%emt 0:00:45]} 12. e5 {[%emt 0:04:12]} Nd5 {[%emt 0:04:58]} 13. Bxe7 {[%emt 0:00:21]} Qxe7 {[%emt 0:00:20]} 14. Ne4 {[%emt 0:00:14]} Rad8 {[%emt 0:05:21]} 15. Nd6 {[%emt 0:01:10]} Ba8 {[%emt 0:00:53]} 16. a3 {[%emt 0:01:39]} f6 {[%emt 0:05:29]} 17. Qc2 {[%emt 0:00:25]} f5 {[%emt 0:04:14]} 18. b4 {[%emt 0:01:10]} N7b6 {[%emt 0:01:22]} 19. g3 {[%emt 0:00:23]} Nc8 {[%emt 0:02:58]} 20. Nxc8 {[%emt 0:01:23]} Rxc8 {[%emt 0:01:45]} 21. Nd2 {[%emt 0:00:41]} Qg5 {[%emt 0:02:40]} 22. f4 {[%emt 0:01:00]} Qg4 {[%emt 0:01:14]} 23. Rce1 {[%emt 0:00:19]} Qh3 {[%emt 0:03:04]} 24. Nf3 {[%emt 0:00:54]} h6 {[%emt 0:03:05]} 25. Rf2 {[%emt 0:00:30]} c5 {[%emt 0:03:54]} 26. dxc5 {[%emt 0:07:32]} Rfd8 {[%emt 0:07:22]} 27. Bf1 {[%emt 0:00:43]} Qg4 {[%emt 0:00:47]} 28. Bg2 {[%emt 0:00:39]} g5 {[%emt 0:04:42]} 29. fxg5 {[%emt 0:15:05]} hxg5 {[%emt 0:00:14]} 30. Qc1 {[%emt 0:00:39]} f4 {[%emt 0:01:21]} 31. Rd1 {[%emt 0:08:20]} Ne3 {[%emt 0:01:10]} 32. Re1 {[%emt 0:01:14]} Nxg2 {[%emt 0:09:25]} 33. Kxg2 {[%emt 0:00:17]} Rd3 {[%emt 0:00:21]} 34. Ref1 {[%emt 0:00:44]} fxg3 {[%emt 0:02:24]} 35. hxg3 {[%emt 0:00:06]} Qf5 {[%emt 0:01:50]} 36. Kg1 {[%emt 0:08:16]} Qg4 {[%emt 0:06:18]} 37. Kg2 {[%emt 0:01:42]} Qh5 {[%emt 0:00:25]} 38. Kg1 {[%emt 0:01:59]} g4 {[%emt 0:01:02]} 39. Rh2 {[%emt 0:00:50]} Qg6 {[%emt 0:01:40]} 40. Rh6 {[%emt 0:00:07]} Qg7 {[%emt 0:03:02]} 41. Qg5 {[%emt 0:03:55]} Qxg5 {[%emt 0:01:11]} 42. Nxg5 {[%emt 0:00:13]} Rxg3+ {[%emt 0:00:03]} 43. Kf2 {[%emt 0:00:29]} Rxa3 {[%emt 0:01:00]} 44. Rg6+ {[%emt 0:01:14]} Kh8 {[%emt 0:02:13]} 45. Rd1 {[%emt 0:04:02]} Rf8+ {[%emt 0:02:03]} 46. Rf6 {[%emt 0:00:20]} Rxf6+ {[%emt 0:00:51]} 47. exf6 {[%emt 0:00:08]} g3+ {[%emt 0:00:11]} 48. Kg1 {[%emt 0:01:23]} Bd5 {[%emt 0:00:32]} 49. f7 {[%emt 0:01:41]} Kg7 {[%emt 0:01:01]} 50. Rf1 {[%emt 0:00:11]} Bf3 {[%emt 0:03:05]} 51. c6 {[%emt 0:03:20]} Kf8 {[%emt 0:04:52]} 52. Rxf3 {[%emt 0:00:14]} Ra1+ {[%emt 0:00:15]} 53. Kg2 {[%emt 0:00:10]} Rc1 {[%emt 0:00:06]} 54. Nxe6+ {[%emt 0:00:10]} Ke7 {[%emt 0:00:06]} 55. f8=Q+ {[%emt 0:00:11]} Kxe6 {[%emt 0:00:07]} 56. Qh6+ {[%emt 0:00:30]} Kd5 {[%emt 0:00:10]} 57. Qxc1 {[%emt 0:00:06]} Kd6 {[%emt 0:00:07]} 58. Qc5+ {[%emt 0:00:29]} Kc7 {[%emt 0:00:07]} 59. Rf7+ {[%emt 0:00:10]} Kc8 {[%emt 0:00:06]} 60. Qf8# {[%emt 0:00:42]} 1-0

[Event "Marshall CC U2400 October 2024"]
[Site "New York"]
[Date "2024.10.20"]
[Round "4.10"]
[White "Dalhouse, Justin"]
[Black "Sen, Samant Robert"]
[Result "1-0"]
[ECO "B07"]
[WhiteElo "1904"]
[BlackElo "1739"]
[Annotator "RC"]
[PlyCount "119"]
[EventDate "2024.04.20"]
[EventType "swiss"]
[EventCountry "USA"]
[SourceTitle "playchess.com"]
[Source "ChessBase"]
[SourceQuality "1"]
[TimeControl "5400+30"]

1. e4 {[%emt 0:13:40]} d6 {[%emt 0:00:03]} 2. d4 {[%emt 0:00:12]} Nf6 {[%emt 0:00:04]} 3. Nc3 {[%emt 0:00:05]} Nbd7 {[%emt 0:00:04]} 4. f4 {[%emt 0:00:03]} e5 {[%emt 0:00:07]} 5. Nf3 {[%emt 0:00:04]} exd4 {[%emt 0:00:10]} 6. Qxd4 {[%emt 0:00:07]} c5 {[%emt 0:02:56]} 7. Qd2 {[%emt 0:04:43]} Nb6 {[%emt 0:04:55]} 8. b3 {[%emt 0:00:20]} Be7 {[%emt 0:01:40]} 9. Bb2 {[%emt 0:00:12]} Be6 {[%emt 0:03:04]} 10. Bb5+ {[%emt 0:03:42]} Bd7 {[%emt 0:01:03]} 11. Bd3 {[%emt 0:00:15]} Bc6 {[%emt 0:01:16]} 12. O-O {[%emt 0:00:04]} O-O {[%emt 0:01:00]} 13. Rae1 {[%emt 0:00:04]} Re8 {[%emt 0:03:34]} 14. Nd1 {[%emt 0:02:03]} d5 {[%emt 0:10:25]} 15. Bxf6 {[%emt 0:00:29]} Bxf6 {[%emt 0:01:11]} 16. e5 {[%emt 0:00:04]} Be7 {[%emt 0:02:45]} 17. c3 {[%emt 0:01:04]} c4 {[%emt 0:00:46]} 18. Bb1 {[%emt 0:00:04]} cxb3 {[%emt 0:00:22]} 19. axb3 {[%emt 0:00:12]} Bc5+ {[%emt 0:03:23]} 20. Kh1 {[%emt 0:00:36]} g6 {[%emt 0:01:19]} 21. f5 {[%emt 0:00:48]} Qd7 {[%emt 0:04:44]} 22. e6 {[%emt 0:02:38]} fxe6 {[%emt 0:03:14]} 23. Ne5 {[%emt 0:00:23]} Qg7 {[%emt 0:03:03]} 24. f6 {[%emt 0:00:48]} Qf8 {[%emt 0:00:51]} 25. f7+ {[%emt 0:00:02]} Kh8 {[%emt 0:00:08]} 26. Bxg6 {[%emt 0:00:07]} Red8 {[%emt 0:01:22]} 27. Bxh7 {[%emt 0:00:13]} Qg7 {[%emt 0:02:04]} 28. Bc2 {[%emt 0:00:30]} d4 {[%emt 0:00:59]} 29. Ng6+ {[%emt 0:00:08]} Kh7 {[%emt 0:00:11]} 30. Qd3 {[%emt 0:02:26]} Bxg2+ {[%emt 0:01:26]} 31. Kxg2 {[%emt 0:00:06]} Qh6 {[%emt 0:02:18]} 32. Qg3 {[%emt 0:05:31]} d3 {[%emt 0:00:45]} 33. Bxd3 {[%emt 0:00:19]} Rxd3 {[%emt 0:00:09]} 34. Qxd3 {[%emt 0:00:19]} Qxg6+ {[%emt 0:00:04]} 35. Qxg6+ {[%emt 0:00:10]} Kxg6 {[%emt 0:00:05]} 36. b4 {[%emt 0:00:06]} Bf8 {[%emt 0:00:14]} 37. Rxe6+ {[%emt 0:00:13]} Kg7 {[%emt 0:00:15]} 38. Re8 {[%emt 0:00:01]} a5 {[%emt 0:00:53]} 39. Rxa8 {[%emt 0:00:56]} Nxa8 {[%emt 0:00:08]} 40. bxa5 {[%emt 0:00:02]} Nc7 {[%emt 0:00:17]} 41. Ne3 {[%emt 0:00:02]} Ne6 {[%emt 0:01:26]} 42. Nc4 {[%emt 0:02:35]} Nc5 {[%emt 0:00:47]} 43. Ne5 {[%emt 0:01:21]} Be7 {[%emt 0:02:18]} 44. h4 {[%emt 0:00:37]} Ne6 {[%emt 0:00:39]} 45. Nd7 {[%emt 0:00:03]} Bd6 {[%emt 0:01:06]} 46. f8=Q+ {[%emt 0:00:13]} Nxf8 {[%emt 0:00:10]} 47. Nxf8 {[%emt 0:00:06]} Bxf8 {[%emt 0:00:07]} 48. Rb1 {[%emt 0:00:03]} Kf6 {[%emt 0:00:21]} 49. Rxb7 {[%emt 0:00:04]} Bc5 {[%emt 0:00:17]} 50. a6 {[%emt 0:00:09]} Kg6 {[%emt 0:00:06]} 51. a7 {[%emt 0:00:06]} Bxa7 {[%emt 0:00:06]} 52. Rxa7 {[%emt 0:00:05]} Kh5 {[%emt 0:00:24]} 53. Kg3 {[%emt 0:00:10]} Kg6 {[%emt 0:00:07]} 54. Kg4 {[%emt 0:00:01]} Kh6 {[%emt 0:00:20]} 55. Ra6+ {[%emt 0:00:06]} Kg7 {[%emt 0:00:04]} 56. Kg5 {[%emt 0:00:15]} Kh7 {[%emt 0:00:07]} 57. Ra7+ {[%emt 0:00:05]} Kg8 {[%emt 0:00:03]} 58. Kf6 {[%emt 0:00:14]} Kh8 {[%emt 0:00:06]} 59. Kg6 {[%emt 0:00:05]} Kg8 {[%emt 0:00:03]} 60. Ra8# {[%emt 0:00:05]} 1-0

[Event "Marshall CC U2400 October 2024"]
[Site "New York"]
[Date "2024.10.21"]
[Round "5.1"]
[White "Sarkar, Justin"]
[Black "Berg, George"]
[Result "1-0"]
[ECO "B90"]
[WhiteElo "2275"]
[BlackElo "1962"]
[Annotator "RC"]
[PlyCount "41"]
[EventDate "2024.04.20"]
[EventType "swiss"]
[EventCountry "USA"]
[SourceTitle "playchess.com"]
[Source "ChessBase"]
[SourceQuality "1"]
[TimeControl "5400+30"]

1. e4 {[%emt 0:00:09]} c5 {[%emt 0:00:05]} 2. Nf3 {[%emt 0:00:12]} d6 {[%emt 0:00:05]} 3. d4 {[%emt 0:01:01]} cxd4 {[%emt 0:00:07]} 4. Nxd4 {[%emt 0:00:04]} Nf6 {[%emt 0:00:06]} 5. Nc3 {[%emt 0:00:03]} a6 {[%emt 0:00:07]} 6. Be3 {[%emt 0:00:44]} e5 {[%emt 0:00:07]} 7. Nb3 {[%emt 0:00:09]} Be6 {[%emt 0:00:03]} 8. h3 {[%emt 0:01:08]} b5 {[%emt 0:08:19]} 9. a4 {[%emt 0:01:11]} b4 {[%emt 0:01:27]} 10. Nd5 {[%emt 0:00:05]} Nbd7 {[%emt 0:04:20]} 11. a5 {[%emt 0:08:01]} Nxe4 {[%emt 0:01:02]} 12. Nxb4 {[%emt 0:00:48]} Bxb3 {[%emt 0:12:10]} 13. cxb3 {[%emt 0:00:15]} Nec5 {[%emt 0:00:05]} 14. Nd5 {[%emt 0:00:24]} g6 {[%emt 0:03:54]} 15. b4 {[%emt 0:01:24]} Ne6 {[%emt 0:00:07]} 16. b5 {[%emt 0:01:23]} axb5 {[%emt 0:01:36]} 17. Bxb5 {[%emt 0:00:07]} Bg7 {[%emt 0:05:13]} 18. Nb6 {[%emt 0:01:04]} Nef8 {[%emt 0:00:47]} 19. Qxd6 {[%emt 0:01:55]} Ra7 {[%emt 0:04:20]} 20. Nxd7 {[%emt 0:05:21]} Rxd7 {[%emt 0:00:06]} 21. a6 {[%emt 0:00:22]} 1-0

[Event "Marshall CC U2400 October 2024"]
[Site "New York"]
[Date "2024.10.21"]
[Round "5.2"]
[White "Paragua, Megan Althea"]
[Black "Bonin, Jay"]
[Result "0-1"]
[ECO "B13"]
[WhiteElo "2190"]
[BlackElo "2131"]
[Annotator "RC"]
[PlyCount "148"]
[EventDate "2024.04.20"]
[EventType "swiss"]
[EventCountry "USA"]
[SourceTitle "playchess.com"]
[Source "ChessBase"]
[SourceQuality "1"]
[TimeControl "5400+30"]

1. e4 {[%emt 0:03:19]} c6 {[%emt 0:00:13]} 2. d4 {[%emt 0:00:15]} a6 {[%emt 0:00:08]} 3. Nf3 {[%emt 0:00:21]} d5 {[%emt 0:00:08]} 4. exd5 {[%emt 0:00:24]} cxd5 {[%emt 0:00:05]} 5. c4 {[%emt 0:00:06]} Nf6 {[%emt 0:00:30]} 6. Nc3 {[%emt 0:00:16]} Nc6 {[%emt 0:03:29]} 7. c5 {[%emt 0:01:24]} g6 {[%emt 0:05:36]} 8. Na4 {[%emt 0:03:24]} Bg4 {[%emt 0:01:28]} 9. Nb6 {[%emt 0:05:13]} Ra7 {[%emt 0:01:50]} 10. Be2 {[%emt 0:01:15]} Bxf3 {[%emt 0:02:52]} 11. Bxf3 {[%emt 0:01:00]} Bg7 {[%emt 0:00:26]} 12. O-O {[%emt 0:00:56]} O-O {[%emt 0:00:14]} 13. Be3 {[%emt 0:00:34]} e6 {[%emt 0:00:44]} 14. Qd2 {[%emt 0:01:35]} a5 {[%emt 0:05:36]} 15. a3 {[%emt 0:01:27]} a4 {[%emt 0:10:01]} 16. Rfd1 {[%emt 0:09:50]} Nd7 {[%emt 0:01:05]} 17. Nxd7 {[%emt 0:04:58]} Qxd7 {[%emt 0:00:05]} 18. Be2 {[%emt 0:00:49]} Na5 {[%emt 0:15:19]} 19. Qb4 {[%emt 0:01:09]} Nb3 {[%emt 0:00:09]} 20. Rab1 {[%emt 0:00:05]} Qc7 {[%emt 0:03:02]} 21. Rd3 {[%emt 0:01:53]} e5 {[%emt 0:09:55]} 22. dxe5 {[%emt 0:06:30]} Qxe5 {[%emt 0:13:00]} 23. f4 {[%emt 0:22:41]} Qe7 {[%emt 0:01:59]} 24. Bd1 {[%emt 0:00:55]} d4 {[%emt 0:02:27]} 25. Bxb3 {[%emt 0:01:23]} dxe3 {[%emt 0:00:19]} 26. Bc4 {[%emt 0:00:40]} Raa8 {[%emt 0:04:41]} 27. Re1 {[%emt 0:02:06]} Rad8 {[%emt 0:01:33]} 28. Qxa4 {[%emt 0:08:20]} e2 {[%emt 0:09:28]} 29. Rxd8 {[%emt 0:11:43]} Qxc5+ {[%emt 0:03:18]} 30. Kh1 {[%emt 0:00:35]} Rxd8 {[%emt 0:00:06]} 31. Bxe2 {[%emt 0:00:27]} Bxb2 {[%emt 0:01:15]} 32. Bf3 {[%emt 0:06:07]} b5 {[%emt 0:00:27]} 33. Qa5 {[%emt 0:04:01]} Rc8 {[%emt 0:02:26]} 34. Qb4 {[%emt 0:01:05]} Qf2 {[%emt 0:00:28]} 35. Rd1 {[%emt 0:00:37]} Rc1 {[%emt 0:00:20]} 36. Rxc1 {[%emt 0:00:11]} Bxc1 {[%emt 0:00:04]} 37. h3 {[%emt 0:00:44]} Qf1+ {[%emt 0:01:52]} 38. Kh2 {[%emt 0:00:01]} Be3 {[%emt 0:00:14]} 39. Qd6 {[%emt 0:00:59]} h5 {[%emt 0:01:39]} 40. Qd8+ {[%emt 0:00:39]} Kg7 {[%emt 0:00:24]} 41. Qd1 {[%emt 0:00:30]} Bxf4+ {[%emt 0:00:33]} 42. g3 {[%emt 0:00:02]} Qf2+ {[%emt 0:00:07]} 43. Bg2 {[%emt 0:00:27]} Qxg3+ {[%emt 0:00:14]} 44. Kg1 {[%emt 0:00:27]} Be5 {[%emt 0:01:08]} 45. Qb1 {[%emt 0:00:01]} Qe3+ {[%emt 0:00:22]} 46. Kh1 {[%emt 0:00:05]} Qxa3 {[%emt 0:00:13]} 47. Qxb5 {[%emt 0:00:20]} Qg3 {[%emt 0:00:20]} 48. Kg1 {[%emt 0:00:06]} g5 {[%emt 0:00:17]} 49. Qe2 {[%emt 0:00:49]} g4 {[%emt 0:00:31]} 50. hxg4 {[%emt 0:00:01]} hxg4 {[%emt 0:00:03]} 51. Qe4 {[%emt 0:00:24]} Bf4 {[%emt 0:01:22]} 52. Qd4+ {[%emt 0:00:09]} Kg6 {[%emt 0:00:32]} 53. Kf1 {[%emt 0:00:36]} Be3 {[%emt 0:00:16]} 54. Qe4+ {[%emt 0:00:41]} Kh6 {[%emt 0:00:35]} 55. Qc6+ {[%emt 0:01:04]} Kg5 {[%emt 0:00:41]} 56. Qd5+ {[%emt 0:00:15]} Kf6 {[%emt 0:00:28]} 57. Qc6+ {[%emt 0:00:49]} Kg7 {[%emt 0:00:16]} 58. Qc3+ {[%emt 0:00:25]} f6 {[%emt 0:00:11]} 59. Qb2 {[%emt 0:00:11]} Qf4+ {[%emt 0:00:31]} 60. Ke1 {[%emt 0:00:01]} Bd4 {[%emt 0:00:39]} 61. Qd2 {[%emt 0:00:45]} Qe5+ {[%emt 0:01:24]} 62. Kd1 {[%emt 0:00:41]} Kg6 {[%emt 0:00:22]} 63. Qe2 {[%emt 0:00:16]} Kg5 {[%emt 0:00:33]} 64. Qxe5+ {[%emt 0:00:25]} Bxe5 {[%emt 0:00:02]} 65. Ke2 {[%emt 0:00:23]} f5 {[%emt 0:01:04]} 66. Bb7 {[%emt 0:00:25]} Kh4 {[%emt 0:00:18]} 67. Kf2 {[%emt 0:00:09]} Kh3 {[%emt 0:00:09]} 68. Kg1 {[%emt 0:00:54]} f4 {[%emt 0:00:39]} 69. Kf2 {[%emt 0:01:25]} Bd4+ {[%emt 0:00:16]} 70. Kf1 {[%emt 0:00:30]} f3 {[%emt 0:00:10]} 71. Bc8 {[%emt 0:00:33]} Kg3 {[%emt 0:00:06]} 72. Bd7 {[%emt 0:00:03]} Kf4 {[%emt 0:00:05]} 73. Be6 {[%emt 0:00:12]} g3 {[%emt 0:00:05]} 74. Bh3 {[%emt 0:00:18]} Bc5 {[%emt 0:00:07]} 0-1

[Event "Marshall CC U2400 October 2024"]
[Site "New York"]
[Date "2024.10.21"]
[Round "5.3"]
[White "Knowles, Chase"]
[Black "Tao, Jeremy"]
[Result "1-0"]
[ECO "A09"]
[WhiteElo "1966"]
[BlackElo "1832"]
[Annotator "RC"]
[PlyCount "73"]
[EventDate "2024.04.20"]
[EventType "swiss"]
[EventCountry "USA"]
[SourceTitle "playchess.com"]
[Source "ChessBase"]
[SourceQuality "1"]
[TimeControl "5400+30"]

1. Nf3 {[%emt 0:00:01]} d5 {[%emt 0:00:04]} 2. c4 {[%emt 0:00:05]} d4 {[%emt 0:00:03]} 3. b4 {[%emt 0:00:04]} c5 {[%emt 0:00:15]} 4. Bb2 {[%emt 0:00:07]} Qb6 {[%emt 0:02:11]} 5. a3 {[%emt 0:05:05]} a5 {[%emt 0:02:19]} 6. b5 {[%emt 0:00:30]} Bg4 {[%emt 0:03:53]} 7. g3 {[%emt 0:05:50]} Bxf3 {[%emt 0:01:30]} 8. exf3 {[%emt 0:00:06]} Nd7 {[%emt 0:01:24]} 9. d3 {[%emt 0:01:24]} Qe6+ {[%emt 0:01:47]} 10. Qe2 {[%emt 0:02:38]} Ne5 {[%emt 0:00:45]} 11. Kd2 {[%emt 0:00:50]} g6 {[%emt 0:01:45]} 12. f4 {[%emt 0:00:59]} Bh6 {[%emt 0:03:01]} 13. Bg2 {[%emt 0:05:00]} Rb8 {[%emt 0:03:23]} 14. Re1 {[%emt 0:08:07]} Ng4 {[%emt 0:01:18]} 15. Qxe6 {[%emt 0:00:14]} fxe6 {[%emt 0:00:08]} 16. Bh3 {[%emt 0:03:34]} Nxh2 {[%emt 0:05:14]} 17. Rh1 {[%emt 0:00:56]} e5 {[%emt 0:02:12]} 18. Rxh2 {[%emt 0:00:42]} exf4 {[%emt 0:00:08]} 19. Kc2 {[%emt 0:00:21]} fxg3 {[%emt 0:00:34]} 20. fxg3 {[%emt 0:00:05]} e5 {[%emt 0:00:56]} 21. Nd2 {[%emt 0:01:08]} Bg7 {[%emt 0:00:58]} 22. Re1 {[%emt 0:01:12]} Ke7 {[%emt 0:00:50]} 23. Nf3 {[%emt 0:00:35]} Kd6 {[%emt 0:00:27]} 24. Ng5 {[%emt 0:00:24]} Ke7 {[%emt 0:02:01]} 25. Ne6 {[%emt 0:01:16]} Bf6 {[%emt 0:01:55]} 26. Nxc5 {[%emt 0:00:06]} Kd6 {[%emt 0:01:13]} 27. Ne4+ {[%emt 0:00:14]} Ke7 {[%emt 0:00:10]} 28. a4 {[%emt 0:00:28]} Bg7 {[%emt 0:01:38]} 29. Ba3+ {[%emt 0:00:22]} Kd8 {[%emt 0:00:22]} 30. Ng5 {[%emt 0:00:14]} Ke8 {[%emt 0:00:24]} 31. Nf3 {[%emt 0:00:38]} Nh6 {[%emt 0:01:16]} 32. Nxe5 {[%emt 0:00:19]} Kd8 {[%emt 0:00:11]} 33. Rhe2 {[%emt 0:01:16]} Kc7 {[%emt 0:00:51]} 34. Nf3 {[%emt 0:00:34]} Bf6 {[%emt 0:00:13]} 35. Re6 {[%emt 0:00:25]} Rbf8 {[%emt 0:00:34]} 36. b6+ {[%emt 0:00:36]} Kd8 {[%emt 0:00:16]} 37. Rd6# {[%emt 0:00:06]} 1-0

[Event "Marshall CC U2400 October 2024"]
[Site "New York"]
[Date "2024.10.21"]
[Round "5.4"]
[White "Miller, Rachel"]
[Black "Wang, Connor Junda"]
[Result "0-1"]
[ECO "B40"]
[WhiteElo "1914"]
[BlackElo "1851"]
[Annotator "RC"]
[PlyCount "64"]
[EventDate "2024.04.20"]
[EventType "swiss"]
[EventCountry "USA"]
[SourceTitle "playchess.com"]
[Source "ChessBase"]
[SourceQuality "1"]
[TimeControl "5400+30"]

1. e4 {[%emt 0:00:02]} c5 {[%emt 0:00:02]} 2. Nf3 {[%emt 0:00:05]} e6 {[%emt 0:00:04]} 3. g3 {[%emt 0:00:24]} a6 {[%emt 0:00:39]} 4. Bg2 {[%emt 0:00:39]} b5 {[%emt 0:00:25]} 5. O-O {[%emt 0:02:11]} Bb7 {[%emt 0:00:15]} 6. Re1 {[%emt 0:02:00]} d6 {[%emt 0:02:08]} 7. d4 {[%emt 0:01:49]} cxd4 {[%emt 0:03:00]} 8. Nxd4 {[%emt 0:00:43]} Qc7 {[%emt 0:05:03]} 9. a4 {[%emt 0:17:09]} bxa4 {[%emt 0:01:11]} 10. Rxa4 {[%emt 0:02:00]} Nf6 {[%emt 0:05:13]} 11. Nc3 {[%emt 0:14:27]} Nbd7 {[%emt 0:06:20]} 12. e5 {[%emt 0:24:04]} dxe5 {[%emt 0:09:03]} 13. Ndb5 {[%emt 0:00:52]} axb5 {[%emt 0:09:20]} 14. Rxa8+ {[%emt 0:00:17]} Bxa8 {[%emt 0:00:10]} 15. Bxa8 {[%emt 0:00:07]} Bc5 {[%emt 0:02:41]} 16. Be3 {[%emt 0:13:43]} O-O {[%emt 0:04:58]} 17. Bg2 {[%emt 0:03:07]} Bxe3 {[%emt 0:04:23]} 18. Rxe3 {[%emt 0:00:57]} b4 {[%emt 0:01:13]} 19. Nb5 {[%emt 0:10:44]} Qb6 {[%emt 0:02:05]} 20. Nd6 {[%emt 0:00:24]} h6 {[%emt 0:11:10]} 21. Nc4 {[%emt 0:00:13]} Qd4 {[%emt 0:07:13]} 22. Qe2 {[%emt 0:00:58]} Rc8 {[%emt 0:08:55]} 23. Nxe5 {[%emt 0:04:19]} Nxe5 {[%emt 0:00:28]} 24. Rxe5 {[%emt 0:00:10]} Qxb2 {[%emt 0:00:23]} 25. Rxe6 {[%emt 0:00:24]} Qb1+ {[%emt 0:02:00]} 26. Qe1 {[%emt 0:00:34]} Qxc2 {[%emt 0:00:46]} 27. Rb6 {[%emt 0:00:29]} b3 {[%emt 0:00:56]} 28. Qb4 {[%emt 0:00:15]} Qd1+ {[%emt 0:06:56]} 29. Bf1 {[%emt 0:00:05]} Rc1 {[%emt 0:00:03]} 30. Qb5 {[%emt 0:01:42]} b2 {[%emt 0:00:23]} 31. Rxf6 {[%emt 0:00:30]} Qxf1+ {[%emt 0:00:13]} 32. Qxf1 {[%emt 0:01:07]} Rxf1+ {[%emt 0:00:06]} 0-1